bitfinex-derivatives/quotes_BTCF0:USTF0_20251011
["timestamp","ask_amount","ask_price","bid_price","bid_amount"]
[1760196701542,0.59477781,112200.0,112190.0,0.39602]
[1760196702047,0.59477781,112200.0,112190.0,0.38282]
[1760196702742,0.59477781,112200.0,112190.0,0.02202]
[1760196702944,0.0890542,112190.0,112180.0,0.07715795]
[1760196703248,0.1233542,112190.0,112180.0,0.09854795]
[1760196703550,0.52337822,112190.0,112180.0,0.09854795]
[1760196703948,0.52337822,112190.0,112180.0,0.08518795]
[1760196703949,0.92337822,112190.0,112180.0,0.08518795]
[1760196704144,0.123362,112180.0,112170.0,0.0957232]
[1760196704351,0.52338602,112180.0,112170.0,0.0743332]
[1760196704550,0.52338602,112180.0,112170.0,0.01050603]
[1760196704855,0.52338602,112180.0,112170.0,0.0743332]
[1760196705152,0.52338602,112180.0,112170.0,0.01050603]
[1760196705553,0.5736915,112180.0,112170.0,0.01050603]
[1760196705756,0.9736915,112180.0,112170.0,0.01050603]
[1760196706053,0.9736915,112180.0,112170.0,0.0104653]
[1760196706645,1.424021,112180.0,112170.0,0.0104653]
[1760196706845,1.424021,112180.0,112170.0,0.0016545]
[1760196707052,0.10182,112170.0,112160.0,0.06382717]
[1760196707256,0.1230179,112160.0,112150.0,0.44601717]
[1760196707457,0.5733474,112160.0,112150.0,0.44601717]
[1760196708264,0.1230179,112160.0,112150.0,0.38219]
[1760196708464,0.5733474,112160.0,112150.0,0.38219]
[1760196708663,0.5733474,112160.0,112150.0,0.3912953]
[1760196709262,0.5733474,112160.0,112150.0,0.3699053]
[1760196709460,0.5733474,112160.0,112150.0,0.3912953]
[1760196711663,0.64517278,112160.0,112150.0,0.3912953]
[1760196713165,1.00597278,112160.0,112150.0,0.0091053]
[1760196713361,1.00597278,112160.0,112150.0,0.0304953]
[1760196713568,1.00597278,112160.0,112150.0,0.02139]
[1760196714265,0.64517278,112160.0,112150.0,0.02139]
[1760196714662,0.64517278,112160.0,112150.0,0.03010023]
[1760196716464,0.09315538,112160.0,112150.0,1.34351553]
[1760196716663,0.18223328,112160.0,112150.0,1.34351553]
[1760196717369,0.07182538,112160.0,112150.0,1.34351553]
[1760196717567,0.16090328,112160.0,112150.0,1.34351553]
[1760196717868,0.0890779,112160.0,112150.0,1.25442973]
[1760196718071,0.5607374,112160.0,112150.0,0.80410023]
[1760196720066,0.5607374,112160.0,112150.0,0.40410023]
[1760196720268,0.5734874,112160.0,112150.0,0.39090023]
[1760196720777,1.0040535,112160.0,112150.0,0.00871023]
[1760196721068,0.6432535,112160.0,112150.0,0.03459]
[1760196722168,0.6432535,112160.0,112150.0,0.0433061]
[1760196722367,0.6432535,112160.0,112150.0,0.0301061]
[1760196723167,0.6432535,112160.0,112150.0,0.0433061]
[1760196723373,0.6305035,112160.0,112150.0,0.0433061]
[1760196723572,0.6432535,112160.0,112150.0,0.0301061]
[1760196724674,0.6432535,112160.0,112150.0,0.0087161]
[1760196724974,0.1233856,112150.0,112140.0,0.39539]
[1760196725374,0.5607451,112150.0,112140.0,0.39539]
[1760196725576,0.5737151,112150.0,112140.0,0.40422599]
[1760196726473,0.5607451,112150.0,112140.0,0.40422599]
[1760196728576,0.5737151,112150.0,112140.0,0.40422599]
[1760196729668,0.5737151,112150.0,112140.0,0.39102599]
[1760196729865,0.1233856,112150.0,112140.0,0.39102599]
[1760196730075,0.5737151,112150.0,112140.0,0.40422599]
[1760196731173,0.5737151,112150.0,112140.0,0.39102599]
[1760196732876,1.30386432,112150.0,112140.0,0.39102599]
[1760196733277,0.5737151,112150.0,112140.0,0.40459599]
[1760196733778,0.5607451,112150.0,112140.0,0.40459599]
[1760196734376,0.5737151,112150.0,112140.0,0.36963599]
[1760196734976,0.5737151,112150.0,112140.0,0.40642599]
[1760196735177,0.5607451,112150.0,112140.0,0.40642599]
[1760196736878,0.5607451,112150.0,112140.0,0.47025316]
[1760196737079,1.26609343,112150.0,112140.0,0.47025316]
[1760196737782,1.27906343,112150.0,112140.0,0.47025316]
[1760196738784,1.26609343,112150.0,112140.0,0.47025316]
[1760196739480,1.26609343,112150.0,112140.0,0.40642599]
[1760196740282,1.26609343,112150.0,112140.0,0.49551959]
[1760196740576,1.26609343,112150.0,112140.0,0.55934676]
[1760196741081,1.26609343,112150.0,112140.0,0.49551959]
[1760196742372,1.26609343,112150.0,112140.0,0.55934676]
[1760196745086,0.81576393,112150.0,112140.0,0.55934676]
[1760196745276,1.26609343,112150.0,112140.0,0.55934676]
[1760196746280,1.24476343,112150.0,112140.0,1.00967626]
[1760196747176,0.70534833,112150.0,112140.0,1.40967626]
[1760196747380,0.5394111,112160.0,112140.0,1.32058266]
[1760196747582,0.5612411,112160.0,112150.0,0.4866756]
[1760196747985,0.6310357,112160.0,112150.0,0.4866756]
[1760196749488,0.1807062,112160.0,112150.0,0.4866756]
[1760196749691,0.6310357,112160.0,112150.0,0.4866756]
[1760196750191,0.1807023,112160.0,112150.0,1.00083227]
[1760196750490,0.6310318,112160.0,112150.0,0.55050277]
[1760196751491,1.34508165,112160.0,112150.0,0.55050277]
[1760196752993,0.89475215,112160.0,112150.0,0.55050277]
[1760196753193,1.25600395,112160.0,112150.0,0.55050277]
[1760196753386,1.25600395,112160.0,112150.0,1.00083227]
[1760196754195,0.80567445,112160.0,112150.0,1.00083227]
[1760196754491,0.89475215,112160.0,112150.0,1.00083227]
[1760196755787,0.0697946,112160.0,112150.0,1.40083227]
[1760196756092,0.5394008,112170.0,112160.0,0.1258676]
[1760196756093,0.1109013,112170.0,112160.0,0.1258676]
[1760196756298,0.5612308,112170.0,112160.0,1.00091271]
[1760196756595,0.1109013,112170.0,112160.0,1.00091271]
[1760196756789,0.1108997,112170.0,112160.0,0.95058321]
[1760196757096,0.5738392,112170.0,112160.0,0.86150561]
[1760196757299,0.5738392,112170.0,112160.0,1.22230561]
[1760196757696,0.5612292,112170.0,112160.0,1.22230561]
[1760196757998,0.5738392,112170.0,112160.0,0.86150561]
[1760196758298,1.29110285,112170.0,112160.0,0.86150561]
[1760196758691,0.5612292,112170.0,112160.0,0.86150561]
[1760196759087,0.5612292,112170.0,112160.0,0.95058331]
[1760196760294,0.4721595,112170.0,112160.0,0.95058331]
[1760196760498,0.56130163,112180.0,112170.0,0.1258598]
[1760196760798,0.47223973,112180.0,112170.0,0.4866598]
[1760196761094,8.023e-05,112180.0,112170.0,0.9369893]
[1760196761999,0.08914213,112180.0,112170.0,1.00090491]
[1760196762401,0.79130963,112180.0,112170.0,1.00090491]
[1760196762793,0.08914213,112180.0,112170.0,1.00090491]
[1760196764102,0.53947163,112180.0,112170.0,1.00090491]
[1760196766101,0.56071163,112180.0,112170.0,0.46150561]
[1760196766999,1.26857816,112180.0,112170.0,0.55057551]
[1760196767505,1.21844719,112180.0,112170.0,0.55057551]
[1760196768098,0.81824866,112180.0,112170.0,0.55057551]
[1760196769203,0.81824866,112180.0,112170.0,0.4866599]
[1760196770401,0.81824866,112180.0,112170.0,0.55057551]
[1760196772005,0.81824866,112180.0,112170.0,0.4866599]
[1760196772207,1.23141719,112180.0,112170.0,0.39759]
[1760196772706,1.23141719,112180.0,112170.0,0.4866599]
[1760196772901,1.21844719,112180.0,112170.0,0.4866599]
[1760196773309,1.21844719,112180.0,112170.0,0.55057551]
[1760196774008,0.81824866,112180.0,112170.0,0.55057551]
[1760196775306,0.70794676,112180.0,112170.0,0.55057551]
[1760196776007,0.79700866,112180.0,112170.0,0.55057551]
[1760196776410,0.81824866,112180.0,112170.0,0.55057551]
[1760196778906,1.21844719,112180.0,112170.0,0.46150561]
[1760196779109,1.23141719,112180.0,112170.0,0.55057571]
[1760196779313,1.21844719,112180.0,112170.0,0.55057571]
[1760196780814,1.21844719,112180.0,112170.0,0.4866601]
[1760196782116,0.51058066,112180.0,112170.0,0.4866601]
[1760196783513,0.51058066,112180.0,112170.0,0.55057571]
[1760196783820,0.08914213,112180.0,112170.0,0.55057571]
[1760196784319,0.11038213,112180.0,112170.0,0.55057571]
[1760196787914,0.08914213,112180.0,112170.0,0.55057571]
[1760196788419,0.02132023,112180.0,112170.0,0.55057571]
[1760196788712,0.02132023,112180.0,112170.0,0.4866601]
[1760196788713,8.023e-05,112180.0,112170.0,0.4866601]
[1760196788920,1e-08,112180.0,112170.0,1.28685863]
[1760196789509,0.07155759,112200.0,112190.0,0.03635]
[1760196789715,0.0890384,112210.0,112200.0,0.1253963]
[1760196789916,0.0890384,112210.0,112200.0,0.4861963]
[1760196790120,0.1102784,112210.0,112200.0,0.39715]
[1760196790320,0.51047693,112210.0,112200.0,0.39715]
[1760196793116,0.58273326,112210.0,112200.0,0.39715]
[1760196793923,0.99548326,112210.0,112200.0,0.38337]
[1760196794119,0.1102163,112200.0,112190.0,0.3977]
[1760196794321,0.1102163,112200.0,112190.0,0.02312]
[1760196794322,0.52302483,112200.0,112190.0,0.02312]
[1760196794621,0.88382483,112200.0,112190.0,0.02312]
[1760196795923,0.88382483,112200.0,112180.0,0.38392]
[1760196795924,0.1231942,112190.0,112180.0,0.38392]
[1760196796119,0.52339273,112190.0,112180.0,0.38392]
[1760196797219,0.1231942,112190.0,112180.0,0.38392]
[1760196797426,0.52339273,112190.0,112180.0,0.39653]
[1760196799223,0.52339273,112190.0,112180.0,0.4855921]
[1760196799429,0.51042273,112190.0,112180.0,0.4855921]
[1760196799929,0.51042273,112190.0,112180.0,0.39653]
[1760196800326,0.52339273,112190.0,112180.0,0.38392]
[1760196800627,0.52339273,112190.0,112180.0,0.3608]
[1760196801233,0.52339273,112190.0,112180.0,0.38392]
[1760196808837,0.1231942,112190.0,112180.0,0.38392]
[1760196809038,0.52339273,112190.0,112180.0,0.38392]
[1760196810937,1.22200707,112190.0,112180.0,0.38392]
[1760196811137,0.52339273,112190.0,112180.0,0.38392]
[1760196812434,0.1231942,112190.0,112180.0,0.38392]
[1760196812643,0.52339273,112190.0,112180.0,0.39653]
[1760196815240,0.52339273,112190.0,112180.0,0.02312]
[1760196815740,1.221081,112190.0,112180.0,0.02312]
[1760196822646,0.1102022,112180.0,112170.0,0.4601647]
[1760196822845,0.51040073,112180.0,112170.0,0.4601647]
[1760196823237,0.51040073,112180.0,112170.0,0.46018699]
[1760196827551,0.56045241,112180.0,112170.0,0.46018699]
[1760196828449,0.56045241,112180.0,112170.0,0.3963]
[1760196831253,0.56045241,112180.0,112170.0,0.4853701]
[1760196833254,0.56045241,112180.0,112170.0,0.93562031]
[1760196833646,0.56045241,112180.0,112170.0,0.4853701]
[1760196834752,0.56045241,112180.0,112170.0,0.93562031]
[1760196835657,0.56045241,112180.0,112170.0,0.4853701]
[1760196838858,0.1102022,112180.0,112170.0,0.4853701]
[1760196839057,0.56045241,112180.0,112170.0,0.4853701]
[1760196840059,0.56045241,112180.0,112170.0,0.3963]
[1760196840856,0.56045241,112180.0,112170.0,0.4853695]
[1760196841058,0.1102022,112180.0,112170.0,0.4853695]
[1760196841361,0.56045241,112180.0,112170.0,0.4853695]
[1760196842258,0.97342241,112180.0,112170.0,0.3963]
[1760196842463,0.97342241,112180.0,112170.0,0.38273]
[1760196843864,0.97342241,112180.0,112170.0,0.39571]
[1760196846461,0.97342241,112180.0,112170.0,0.4847797]
[1760196846462,0.96045241,112180.0,112170.0,0.4847797]
[1760196846661,0.96045241,112180.0,112170.0,0.39571]
[1760196848662,0.97342241,112180.0,112170.0,0.39571]
[1760196855471,0.97342241,112180.0,112170.0,0.38273]
[1760196856675,0.1235399,112170.0,112160.0,0.3608]
[1760196856875,1.02404032,112170.0,112160.0,0.3608]
[1760196858780,1.02404032,112170.0,112150.0,0.38254]
[1760196858781,0.123408,112160.0,112150.0,0.38254]
[1760196858976,0.57365821,112160.0,112150.0,0.38254]
[1760196861387,0.1108059,112150.0,112140.0,0.40425761]
[1760196861587,0.56105611,112150.0,112140.0,0.4681164]
[1760196861886,0.57402611,112150.0,112140.0,0.4681164]
[1760196862791,0.57402611,112150.0,112140.0,0.4555064]
[1760196863893,0.57402611,112150.0,112140.0,0.39164761]
[1760196864087,0.57402611,112150.0,112140.0,0.00910761]
[1760196864283,1.02427632,112150.0,112130.0,0.43739284]
[1760196864496,1.02427632,112150.0,112130.0,0.45913284]
[1760196864497,0.1108139,112140.0,112130.0,0.45913284]
[1760196864699,0.56106411,112140.0,112130.0,0.45913284]
[1760196864999,0.56106411,112140.0,112130.0,0.46810151]
[1760196866891,0.1108139,112140.0,112130.0,0.46810151]
[1760196867096,0.56106411,112140.0,112130.0,0.46810151]
[1760196867400,0.56106411,112140.0,112130.0,0.40424272]
[1760196870599,0.56106411,112140.0,112130.0,0.49334452]
[1760196871189,0.1108093,112150.0,112140.0,0.03439]
[1760196871395,0.56105951,112150.0,112140.0,0.84544021]
[1760196871595,0.56105951,112150.0,112140.0,0.39519]
[1760196873102,0.57402951,112150.0,112140.0,0.39519]
[1760196873797,0.57402951,112150.0,112140.0,0.38254]
[1760196874700,0.1237839,112140.0,112130.0,0.46810151]
[1760196874903,0.57403411,112140.0,112130.0,0.40424272]
[1760196875594,0.57403411,112140.0,112130.0,0.46810151]
[1760196876096,0.57403411,112140.0,112130.0,0.40424272]
[1760196876500,0.57403411,112140.0,112130.0,0.46810151]
[1760196876702,0.57403411,112140.0,112130.0,0.40424272]
[1760196878205,1.02428432,112140.0,112130.0,0.40424272]
[1760196878404,1.02428432,112140.0,112130.0,0.39159272]
[1760196879009,1.78508432,112140.0,112130.0,8.405e-05]
[1760196879207,1.6235719,112130.0,112120.0,0.02174]
[1760196879408,2.07382211,112130.0,112120.0,0.02174]
[1760196879709,2.07382211,112130.0,112120.0,0.03066475]
[1760196880104,2.07390679,112130.0,112120.0,0.03066475]
[1760196881004,2.07390679,112130.0,112120.0,0.00892475]
[1760196881005,2.47390679,112130.0,112120.0,0.00892475]
[1760196881202,3.284957,112130.0,112120.0,0.00892475]
[1760196881404,0.1243178,112110.0,112100.0,0.44639879]
[1760196881598,0.1243178,112110.0,112100.0,0.46000879]
[1760196881599,0.56177801,112110.0,112100.0,0.46000879]
[1760196882206,0.18113254,112110.0,112100.0,1.3993847]
[1760196882400,0.15872254,112110.0,112100.0,1.00817555]
[1760196883009,0.63138275,112110.0,112100.0,0.46879964]
[1760196883406,0.63138275,112110.0,112100.0,0.40494085]
[1760196883805,0.60897275,112110.0,112100.0,0.49406655]
[1760196884110,0.63138275,112110.0,112100.0,0.49406655]
[1760196885510,0.63138275,112110.0,112100.0,0.40494085]
[1760196886605,0.62038275,112110.0,112100.0,0.40336721]
[1760196889408,0.57082825,112110.0,112100.0,0.40336721]
[1760196890113,0.17013254,112110.0,112100.0,0.40336721]
[1760196891316,0.57082825,112110.0,112100.0,0.40336721]
[1760196891517,0.58343825,112110.0,112100.0,0.40336721]
[1760196891717,0.58343825,112110.0,112100.0,0.38975721]
[1760196892117,0.98343825,112110.0,112100.0,0.38975721]
[1760196893114,0.58274254,112110.0,112100.0,0.38975721]
[1760196893316,0.98343825,112110.0,112100.0,0.38975721]
[1760196894116,0.98343825,112110.0,112100.0,0.36801721]
[1760196894317,0.58274254,112110.0,112100.0,0.38976721]
[1760196894518,0.98343825,112110.0,112100.0,0.36801721]
[1760196894817,0.98343825,112110.0,112100.0,0.03054085]
[1760196897416,0.98343825,112110.0,112100.0,0.03945986]
[1760196898222,1.67948414,112110.0,112100.0,0.03945986]
[1760196900821,1.67948414,112110.0,112100.0,0.01770986]
[1760196901022,1.67948414,112110.0,112100.0,0.03945986]
[1760196904827,1.27878843,112110.0,112100.0,0.03945986]
[1760196905127,1.67948414,112110.0,112100.0,0.03945986]
[1760196905823,1.67948414,112110.0,112100.0,0.01770986]
[1760196907224,1.70229475,112110.0,112100.0,0.01770986]
[1760196907427,2.06309475,112110.0,112100.0,0.00879085]
[1760196907724,2.06309475,112110.0,112100.0,0.00891742]
[1760196908125,2.06309475,112110.0,112090.0,0.3609042]
[1760196908321,0.0891414,112080.0,112070.0,0.38255]
[1760196908629,0.52548711,112080.0,112070.0,0.3914706]
[1760196909022,0.52548711,112080.0,112070.0,0.4049606]
[1760196909221,0.52548711,112080.0,112070.0,0.3914706]
[1760196909429,0.52548711,112080.0,112070.0,0.40023156]
[1760196910526,0.52548711,112080.0,112070.0,0.41372156]
[1760196910831,0.52548711,112080.0,112070.0,0.40023156]
[1760196911331,0.1247914,112080.0,112070.0,0.40023156]
[1760196911532,0.54829979,112080.0,112070.0,0.40023156]
[1760196912133,0.52548711,112080.0,112070.0,0.40023156]
[1760196912727,0.54829626,112080.0,112070.0,0.40023156]
[1760196913227,0.1247914,112080.0,112070.0,0.40023156]
[1760196913434,0.52548711,112080.0,112070.0,0.40023156]
[1760196913732,0.14759907,112080.0,112070.0,0.40023156]
[1760196913924,0.52548711,112080.0,112070.0,0.40023156]
[1760196916336,0.1247914,112080.0,112070.0,0.40023156]
[1760196916633,0.52548711,112080.0,112070.0,0.40023156]
[1760196917134,0.1247914,112080.0,112070.0,0.40023156]
[1760196917334,0.52548711,112080.0,112070.0,0.40023156]
[1760196918234,0.51287711,112080.0,112070.0,0.41362156]
[1760196919032,0.52574711,112080.0,112070.0,0.41362156]
[1760196920136,0.51287711,112080.0,112070.0,0.41362156]
[1760196921933,0.52574711,112080.0,112070.0,0.40023156]
[1760196922638,0.52574711,112080.0,112070.0,0.41362156]
[1760196923138,0.52574711,112080.0,112070.0,0.39131096]
[1760196923337,0.52574711,112080.0,112070.0,0.40022997]
[1760196924042,0.52584342,112080.0,112070.0,0.40022997]
[1760196925135,0.12514771,112080.0,112070.0,0.41361997]
[1760196925337,0.51297342,112080.0,112070.0,0.41361997]
[1760196925642,0.11227771,112080.0,112070.0,0.41361997]
[1760196925836,0.51297342,112080.0,112070.0,0.41361997]
[1760196927236,0.11227771,112080.0,112070.0,0.41361997]
[1760196927437,0.51297342,112080.0,112070.0,0.41361997]
[1760196928744,0.11227771,112080.0,112070.0,0.41361997]
[1760196929539,0.51297342,112080.0,112070.0,0.41361997]
[1760196932442,0.11227771,112080.0,112070.0,0.41361997]
[1760196932747,0.08923771,112080.0,112070.0,0.90276887]
[1760196933140,0.08923721,112080.0,112070.0,0.90276887]
[1760196933341,0.08923721,112080.0,112070.0,1.17441997]
[1760196933745,0.08923721,112080.0,112070.0,1.16550096]
[1760196933945,0.08923721,112080.0,112070.0,1.17442077]
[1760196935238,0.52427292,112080.0,112070.0,0.76550096]
[1760196935443,0.52427292,112080.0,112070.0,0.41362156]
[1760196935642,0.51140292,112080.0,112070.0,0.41362156]
[1760196938047,0.11070721,112080.0,112070.0,0.41362156]
[1760196938247,0.51140292,112080.0,112070.0,0.41362156]
[1760196938845,0.52427292,112080.0,112070.0,0.41362156]
[1760196939049,0.52427292,112080.0,112070.0,0.40023156]
[1760196939552,0.52427292,112080.0,112070.0,0.01768156]
[1760196939553,1.68576863,112080.0,112070.0,0.01768156]
[1760196939856,1.70883384,112080.0,112070.0,0.01768156]
[1760196941153,1.68576863,112080.0,112070.0,0.04081156]
[1760196941352,0.88507292,112080.0,112070.0,0.04081156]
[1760196941555,0.88507292,112080.0,112070.0,0.05368156]
[1760196942054,0.51140292,112080.0,112070.0,0.05368156]
[1760196942444,0.51140292,112080.0,112070.0,0.41448156]
[1760196944952,0.52402292,112080.0,112070.0,0.40161156]
[1760196946756,0.12332721,112080.0,112070.0,0.41448156]
[1760196946958,0.52402292,112080.0,112070.0,0.41448156]
[1760196947658,0.12332721,112080.0,112070.0,0.41448156]
[1760196947857,0.11070721,112080.0,112070.0,0.41448156]
[1760196948052,0.51140292,112080.0,112070.0,0.41448156]
[1760196951562,1.01285125,112080.0,112070.0,0.41448156]
[1760196951760,0.08923721,112080.0,112070.0,0.81448156]
[1760196951958,0.56285923,112080.0,112070.0,0.81448156]
[1760196954065,1.01393125,112080.0,112070.0,0.81448156]
[1760196954467,1.01393125,112080.0,112070.0,0.80556096]
[1760196954665,1.02655125,112080.0,112070.0,0.80556096]
[1760196954865,1.02655125,112080.0,112070.0,0.80161156]
[1760196955571,1.02655125,112080.0,112070.0,0.39269096]
[1760196955572,1.42655125,112080.0,112070.0,0.39269096]
[1760196955863,1.78735125,112080.0,112070.0,0.01768236]
[1760196956568,1.78735125,112080.0,112070.0,0.03910236]
[1760196957864,0.88520721,112080.0,112070.0,0.03910236]
[1760196958067,1.78735125,112080.0,112070.0,0.03910236]
[1760196958464,0.1117108,112060.0,112050.0,0.0089214]
[1760196958765,0.4725108,112060.0,112050.0,0.0303414]
[1760196959164,0.92358282,112060.0,112050.0,0.1195059]
[1760196959369,0.92358282,112060.0,112050.0,0.0303414]
[1760196959370,0.93620282,112060.0,112050.0,0.0303414]
[1760196960772,1.29700282,112060.0,112050.0,0.03013369]
[1760196960972,1.29700282,112060.0,112050.0,0.03905588]
[1760196962471,0.8459308,112060.0,112050.0,0.03905588]
[1760196962666,1.29700282,112060.0,112050.0,0.03905588]
[1760196962871,1.36669567,112060.0,112050.0,0.03905588]
[1760196967878,1.81776769,112060.0,112050.0,0.00660429]
[1760196968079,1.36669567,112060.0,112050.0,0.01552728]
[1760196968380,1.36669567,112060.0,112050.0,0.00892299]
[1760196968781,1.36669567,112060.0,112050.0,0.02744225]
[1760196974085,1.36669567,112060.0,112050.0,0.01781225]
[1760196974387,1.36669567,112060.0,112050.0,0.02744225]
[1760196979391,0.91562365,112060.0,112050.0,0.02744225]
[1760196979591,1.36669567,112060.0,112050.0,0.02744225]
[1760196982388,1.36669567,112060.0,112050.0,0.01851926]
[1760196982788,0.1018908,112050.0,112020.0,0.54755122]
[1760196982985,0.81187202,112040.0,112030.0,0.09809689]
[1760196983189,0.82459202,112040.0,112030.0,0.54916891]
[1760196983490,0.84563202,112040.0,112030.0,0.54916891]
[1760196984392,0.3608,112040.0,112030.0,0.54916891]
[1760196984593,0.81187202,112040.0,112030.0,0.54916891]
[1760196985888,0.84563202,112040.0,112030.0,0.09809689]
[1760196986088,0.84563202,112040.0,112030.0,0.56529884]
[1760196987695,0.93480542,112040.0,112030.0,0.51422682]
[1760196991897,0.93480542,112040.0,112030.0,0.59429536]
[1760196993503,1.29560542,112040.0,112030.0,0.09619847]
[1760196993803,1.29560542,112040.0,112030.0,0.11423422]
[1760196995498,1.29560542,112040.0,112030.0,0.19430276]
[1760196997607,1.29560542,112040.0,112030.0,0.11423422]
[1760196999308,1.5,112030.0,112020.0,0.54917901]
[1760196999508,2.32459202,112030.0,112020.0,0.54025602]
[1760196999708,2.43481342,112030.0,112020.0,0.54025602]
[1760196999910,2.41377342,112030.0,112020.0,0.54917901]
[1760197000115,2.43638342,112030.0,112020.0,0.09810699]
[1760197000812,1.9853114,112030.0,112020.0,0.09810699]
[1760197001013,2.43638342,112030.0,112020.0,0.089184]
[1760197001403,2.43638342,112030.0,112020.0,0.09810699]
[1760197001813,2.32459202,112030.0,112020.0,0.09810699]
[1760197002014,2.31187202,112030.0,112020.0,0.09810699]
[1760197002212,1.8608,112030.0,112020.0,0.09810699]
[1760197002419,2.31187202,112030.0,112020.0,0.09810699]
[1760197002715,2.31187202,112030.0,112020.0,0.54917901]
[1760197002910,2.32478202,112030.0,112020.0,0.54917901]
[1760197003415,2.32478202,112030.0,112020.0,0.09810699]
[1760197003717,2.32478202,112030.0,112010.0,0.45107202]
[1760197003915,0.3608,112020.0,112010.0,0.45107202]
[1760197004115,0.3608,112020.0,112010.0,0.85107202]
[1760197004318,0.43203737,112020.0,112010.0,0.45107202]
[1760197004518,0.43203737,112020.0,112010.0,0.54026932]
[1760197006113,0.43203737,112020.0,112010.0,0.55643887]
[1760197006418,0.41882738,112020.0,112010.0,0.55643887]
[1760197010919,0.30152739,112020.0,112010.0,0.55643887]
[1760197011519,0.30152739,112020.0,112010.0,0.10536685]
[1760197012218,0.30152739,112020.0,112010.0,0.21738212]
[1760197013923,0.30152739,112020.0,112010.0,0.10536685]
[1760197017223,0.30152739,112020.0,112010.0,0.21738212]
[1760197018327,0.30152739,112020.0,112010.0,0.10536685]
[1760197021625,0.30152739,112020.0,112010.0,0.21738212]
[1760197023130,0.30152739,112020.0,112010.0,0.10536685]
[1760197023430,0.07123737,112020.0,112010.0,0.9065733]
[1760197023618,0.77472645,112040.0,112030.0,0.0891814]
[1760197024125,0.88537985,112040.0,112030.0,0.0891814]
[1760197026131,0.4841734,112040.0,112030.0,0.0891814]
[1760197026431,0.88537985,112040.0,112030.0,0.0891814]
[1760197028427,0.88537985,112040.0,112020.0,0.0891849]
[1760197028623,0.3608,112030.0,112020.0,0.0891849]
[1760197028825,0.37371,112030.0,112020.0,0.0891849]
[1760197029228,0.77491645,112030.0,112020.0,0.0891849]
[1760197029828,0.79639645,112030.0,112020.0,0.0891849]
[1760197030132,0.39519,112030.0,112020.0,0.0891849]
[1760197030930,0.79639645,112030.0,112020.0,0.0891849]
[1760197033432,0.79639645,112030.0,112000.0,0.46985355]
[1760197033732,0.3608,112010.0,112000.0,0.40120645]
[1760197033933,0.3608,112010.0,111990.0,0.85121955]
[1760197034128,0.3608,112010.0,112000.0,0.02952396]
[1760197034430,0.43516645,112030.0,112020.0,0.0891894]
[1760197034623,1.15676645,112030.0,112020.0,0.0891894]
[1760197040229,1.15676645,112030.0,111990.0,0.05864743]
[1760197040539,0.2908,112000.0,111990.0,0.40120645]
[1760197040837,0.2908,112000.0,111990.0,0.49041955]
[1760197041238,0.29091058,112000.0,111990.0,0.49050163]
[1760197043534,0.29091058,112000.0,111990.0,0.51988083]
[1760197044240,0.24691058,112000.0,111990.0,0.51988083]
[1760197045637,0.26009058,112000.0,111990.0,0.11867438]
[1760197047247,0.26009058,112000.0,111990.0,0.23080941]
[1760197048444,0.26009058,112000.0,111990.0,0.11867438]
[1760197049444,0.26009058,112000.0,111990.0,0.51867438]
[1760197049939,1.57275818,112000.0,111990.0,0.14158527]
[1760197050746,1.57275818,112000.0,111990.0,0.02946128]
[1760197055347,2.29967338,112000.0,111990.0,0.02946128]
[1760197055547,0.03423,111970.0,111960.0,0.0892366]
[1760197055748,1.15703645,111970.0,111960.0,0.0892366]
[1760197056648,1.15703645,111970.0,111960.0,0.11770619]
[1760197057148,1.13921645,111970.0,111960.0,0.10770619]
[1760197057541,1.13921645,111970.0,111960.0,0.09670619]
[1760197060447,1.20806933,111970.0,111960.0,0.09670619]
[1760197061948,1.23008933,111970.0,111960.0,0.09670619]
[1760197063745,1.31931853,111970.0,111960.0,0.02846959]
[1760197063941,1.71931853,111970.0,111960.0,0.02846959]
[1760197064246,0.0127,111960.0,111950.0,0.08932002]
[1760197064545,0.77470645,111960.0,111950.0,0.08932002]
[1760197066251,0.3735,111960.0,111950.0,0.11809984]
[1760197066452,0.77470645,111960.0,111950.0,0.11809984]
[1760197067248,0.79634645,111960.0,111950.0,0.11809984]
[1760197067551,0.77470645,111960.0,111950.0,0.11809984]
[1760197067746,1.19634645,111960.0,111950.0,0.02885774]
[1760197068150,1.19634645,111960.0,111950.0,0.11810284]
[1760197068352,1.19634645,111960.0,111950.0,0.23810284]
[1760197068550,1.17470645,111960.0,111950.0,0.23810284]
[1760197068846,1.19634645,111960.0,111950.0,0.14885774]
[1760197069146,0.79514,111960.0,111950.0,0.14885774]
[1760197069348,1.19634645,111960.0,111950.0,0.14885774]
[1760197069651,1.5975529,111960.0,111950.0,0.14885774]
[1760197069843,1.19634645,111960.0,111950.0,0.14885774]
[1760197070249,1.5975529,111960.0,111950.0,0.14885774]
[1760197071146,1.28558365,111960.0,111950.0,0.14885774]
[1760197071347,1.6867901,111960.0,111950.0,0.14885774]
[1760197073449,1.78867708,111960.0,111950.0,0.14885774]
[1760197073642,2.24082702,111960.0,111950.0,0.14885774]
[1760197073952,1.78867708,111960.0,111950.0,0.14885774]
[1760197080156,1.81355626,111960.0,111950.0,0.14885774]
[1760197080859,1.29943988,111960.0,111950.0,0.14885774]
[1760197081061,0.82564994,111960.0,111950.0,0.14885774]
[1760197081856,0.79467239,111960.0,111950.0,0.54885774]
[1760197082461,0.34252245,111960.0,111950.0,0.54885774]
[1760197082960,0.80737239,111960.0,111950.0,0.54885774]
[1760197084160,0.79467239,111960.0,111950.0,0.54885774]
[1760197084461,0.60740199,111960.0,111950.0,0.54885774]
[1760197084757,0.34263116,111960.0,111950.0,0.63810264]
[1760197084963,0.20279116,111960.0,111950.0,0.63810264]
[1760197085160,0.20279116,111960.0,111950.0,1.09025258]
[1760197085462,0.52423282,111970.0,111950.0,1.45104828]
[1760197085662,0.52423282,111970.0,111950.0,1.05104828]
[1760197086060,0.07208288,111970.0,111960.0,0.90218684]
[1760197086362,0.01318,111980.0,111960.0,1.89433678]
[1760197086559,0.37398,111990.0,111970.0,0.54137834]
[1760197086762,0.82612994,111990.0,111970.0,0.66137834]
[1760197087062,0.82612994,111990.0,111970.0,1.02217834]
[1760197087465,0.37398,111990.0,111980.0,0.089221]
[1760197087662,0.82612994,111990.0,111980.0,0.209221]
[1760197087965,0.89846399,111990.0,111980.0,0.209221]
[1760197088361,0.44631405,111990.0,111980.0,1.06137094]
[1760197088564,0.44631405,111990.0,111980.0,0.970021]
[1760197088565,0.07233405,111990.0,111980.0,0.970021]
[1760197088865,0.37361058,112000.0,111990.0,0.089213]
[1760197088866,0.00011058,112000.0,111990.0,0.089213]
[1760197089067,0.00011058,112000.0,111990.0,0.57214994]
[1760197089365,0.00011058,112000.0,111990.0,0.93294994]
[1760197089868,0.01281058,112000.0,111990.0,0.93294994]
[1760197090258,0.48660052,112000.0,111990.0,0.4808]
[1760197090462,0.46496052,112000.0,111990.0,0.4808]
[1760197091367,0.48660052,112000.0,111990.0,0.12]
[1760197091968,0.55657333,112000.0,111990.0,0.12]
[1760197092968,0.10442339,112000.0,111990.0,0.12]